[Event "Titled Tuesday Blitz August 08 Early 2023"]
[White "Krzyzanowski, Marcin"]
[Black "Nathan, Nitish"]
[WhiteFideId "1132199"]
[BlackFideId "30927870"]
[WhiteElo "2785"]
[BlackElo "2396"]
[Result "1-0"]
[Round "4"]
[TimeControl "180+1"]
[Date "2023.08.08"]
[WhiteClock "0:00:05"]
[BlackClock "0:00:05"]
[Board "39"]

1. e4 {[%clk 0:02:59]}  c5 {[%clk 0:02:58]} 2. Nf3 {[%clk 0:02:59]}  Nc6 {[%clk 0:02:58]} 3. d4 {[%clk 0:02:58]}  cxd4 {[%clk 0:02:59]} 4. Nxd4 {[%clk 0:02:59]}  e5 {[%clk 0:02:59]} 5. Nb5 {[%clk 0:02:56]}  d6 {[%clk 0:02:59]} 6. c4 {[%clk 0:02:52]}  Be7 {[%clk 0:02:56]} 7. N1c3 {[%clk 0:02:34]}  a6 {[%clk 0:02:55]} 8. Na3 {[%clk 0:02:34]}  f5 {[%clk 0:02:56]} 9. exf5 {[%clk 0:02:32]}  Bxf5 {[%clk 0:02:57]} 10. Bd3 {[%clk 0:02:33]}  Be6 {[%clk 0:02:58]} 11. O-O {[%clk 0:02:31]}  Nf6 {[%clk 0:02:58]} 12. Ne4 {[%clk 0:02:26]}  O-O {[%clk 0:02:56]} 13. Nxf6+ {[%clk 0:02:25]}  gxf6 {[%clk 0:02:56]} 14. Nc2 {[%clk 0:02:15]}  f5 {[%clk 0:02:55]} 15. f4 {[%clk 0:02:12]}  e4 {[%clk 0:02:54]} 16. Be2 {[%clk 0:02:13]}  Bf6 {[%clk 0:02:53]} 17. Kh1 {[%clk 0:02:11]}  d5 {[%clk 0:02:50]} 18. cxd5 {[%clk 0:02:08]}  Qxd5 {[%clk 0:02:49]} 19. Qe1 {[%clk 0:01:37]}  Kh8 {[%clk 0:02:47]} 20. Be3 {[%clk 0:01:36]}  Qd7 {[%clk 0:02:39]} 21. Rd1 {[%clk 0:01:35]}  Qg7 {[%clk 0:02:38]} 22. b3 {[%clk 0:01:32]}  Rad8 {[%clk 0:02:36]} 23. Qf2 {[%clk 0:01:32]}  Rg8 {[%clk 0:02:23]} 24. g3 {[%clk 0:01:26]}  Rge8 {[%clk 0:02:18]} 25. Bb6 {[%clk 0:01:21]}  Rc8 {[%clk 0:02:12]} 26. Ne3 {[%clk 0:01:13]}  Nd4 {[%clk 0:02:05]} 27. Bc4 {[%clk 0:00:54]}  Bxc4 {[%clk 0:02:01]} 28. bxc4 {[%clk 0:00:54]}  Rf8 {[%clk 0:01:52]} 29. Nd5 {[%clk 0:00:50]}  Nc6 {[%clk 0:01:50]} 30. Nxf6 {[%clk 0:00:45]}  Qxf6 {[%clk 0:01:51]} 31. Rd5 {[%clk 0:00:44]}  Qe6 {[%clk 0:01:44]} 32. Rfd1 {[%clk 0:00:42]}  Rfe8 {[%clk 0:01:40]} 33. Qb2+ {[%clk 0:00:38]}  Kg8 {[%clk 0:01:39]} 34. Be3 {[%clk 0:00:34]}  Re7 {[%clk 0:01:31]} 35. Qc3 {[%clk 0:00:30]}  Rf7 {[%clk 0:01:21]} 36. g4 {[%clk 0:00:28]}  Qf6 {[%clk 0:01:12]} 37. Qxf6 {[%clk 0:00:21]}  Rxf6 {[%clk 0:01:13]} 38. gxf5 {[%clk 0:00:19]}  Ne7 {[%clk 0:01:06]} 39. Rg1+ {[%clk 0:00:17]}  Kf7 {[%clk 0:01:02]} 40. Rd7 {[%clk 0:00:16]}  Rxc4 {[%clk 0:00:59]} 41. Bd4 {[%clk 0:00:16]}  Rxd4 {[%clk 0:00:33]} 42. Rxd4 {[%clk 0:00:17]}  e3 {[%clk 0:00:32]} 43. Re4 {[%clk 0:00:13]}  Nxf5 {[%clk 0:00:32]} 44. Rc1 {[%clk 0:00:11]}  Rb6 {[%clk 0:00:21]} 45. Rc2 {[%clk 0:00:10]}  Rb1+ {[%clk 0:00:19]} 46. Kg2 {[%clk 0:00:10]}  Rb6 {[%clk 0:00:19]} 47. Kf3 {[%clk 0:00:10]}  Rh6 {[%clk 0:00:19]} 48. Kg4 {[%clk 0:00:10]}  Nd6 {[%clk 0:00:17]} 49. Rxe3 {[%clk 0:00:09]}  Rg6+ {[%clk 0:00:17]} 50. Kf3 {[%clk 0:00:09]}  Nf5 {[%clk 0:00:17]} 51. Rc7+ {[%clk 0:00:09]}  Kf6 {[%clk 0:00:16]} 52. Rd3 {[%clk 0:00:08]}  Rh6 {[%clk 0:00:15]} 53. Rxb7 {[%clk 0:00:06]}  Rxh2 {[%clk 0:00:12]} 54. Rb6+ {[%clk 0:00:06]}  Kf7 {[%clk 0:00:12]} 55. Rxa6 {[%clk 0:00:05]}  Nh4+ {[%clk 0:00:09]} 56. Kg4 {[%clk 0:00:04]}  Ng2 {[%clk 0:00:07]} 57. Rd7+ {[%clk 0:00:05]}  Ke8 {[%clk 0:00:08]} 58. Rb7 {[%clk 0:00:05]}  Rh4+ {[%clk 0:00:05]} 59. Kg3 {[%clk 0:00:04]}  Rxf4 {[%clk 0:00:05]} 60. Ra8# {[%clk 0:00:05]} 1-0


[Site "https://www.chess.com"]

[Event "Titled Tuesday Blitz August 08 Early 2023"]
[White "Sadykov, Ramil"]
[Black "Sarana, Alexey"]
[WhiteFideId "24113590"]
[BlackFideId "24133795"]
[WhiteElo "2606"]
[BlackElo "3082"]
[Result "0-1"]
[Round "4"]
[TimeControl "180+1"]
[Date "2023.08.08"]
[WhiteClock "0:01:33"]
[BlackClock "0:01:42"]
[Board "40"]

1. e4 {[%clk 0:02:27]}  e5 {[%clk 0:02:59]} 2. Nf3 {[%clk 0:02:27]}  Nc6 {[%clk 0:03:00]} 3. Nc3 {[%clk 0:02:27]}  Nf6 {[%clk 0:02:58]} 4. d4 {[%clk 0:02:27]}  exd4 {[%clk 0:02:59]} 5. Nxd4 {[%clk 0:02:28]}  Bb4 {[%clk 0:02:58]} 6. Nxc6 {[%clk 0:02:27]}  bxc6 {[%clk 0:02:59]} 7. Bd3 {[%clk 0:02:27]}  d6 {[%clk 0:02:59]} 8. O-O {[%clk 0:02:25]}  Ng4 {[%clk 0:02:59]} 9. h3 {[%clk 0:02:19]}  Ne5 {[%clk 0:02:59]} 10. Be2 {[%clk 0:02:12]}  Qh4 {[%clk 0:02:47]} 11. f4 {[%clk 0:02:08]}  Qg3 {[%clk 0:01:41]} 12. fxe5 {[%clk 0:01:38]}  Bc5+ {[%clk 0:01:41]} 13. Kh1 {[%clk 0:01:37]}  Bxh3 {[%clk 0:01:42]} 14. Bf3 {[%clk 0:01:33]}  Bxg2+ {[%clk 0:01:42]} 0-1


[Site "https://www.chess.com"]

[Event "Titled Tuesday Blitz August 08 Early 2023"]
[White "Terry, Renato"]
[Black "Budrewicz, Krzysztof"]
[WhiteFideId "3803457"]
[BlackFideId "1127950"]
[WhiteElo "2921"]
[BlackElo "2592"]
[Result "1-0"]
[Round "4"]
[TimeControl "180+1"]
[Date "2023.08.08"]
[WhiteClock "0:01:57"]
[BlackClock "0:01:45"]
[Board "48"]

1. e4 {[%clk 0:03:00]}  e5 {[%clk 0:03:00]} 2. Nf3 {[%clk 0:03:01]}  Nc6 {[%clk 0:03:00]} 3. c3 {[%clk 0:03:01]}  Nge7 {[%clk 0:02:55]} 4. d4 {[%clk 0:03:02]}  exd4 {[%clk 0:02:55]} 5. cxd4 {[%clk 0:03:02]}  d5 {[%clk 0:02:56]} 6. e5 {[%clk 0:03:02]}  g6 {[%clk 0:02:53]} 7. h3 {[%clk 0:02:39]}  Bg7 {[%clk 0:02:52]} 8. Nc3 {[%clk 0:02:35]}  O-O {[%clk 0:02:52]} 9. Bb5 {[%clk 0:02:35]}  f6 {[%clk 0:02:50]} 10. exf6 {[%clk 0:02:34]}  Bxf6 {[%clk 0:02:50]} 11. O-O {[%clk 0:02:33]}  Bg7 {[%clk 0:02:48]} 12. Re1 {[%clk 0:02:22]}  a6 {[%clk 0:02:45]} 13. Ba4 {[%clk 0:02:22]}  b5 {[%clk 0:02:42]} 14. Bb3 {[%clk 0:02:22]}  Na5 {[%clk 0:02:33]} 15. Bg5 {[%clk 0:02:21]}  Bf6 {[%clk 0:02:28]} 16. Bxf6 {[%clk 0:02:17]}  Rxf6 {[%clk 0:02:29]} 17. Rxe7 {[%clk 0:02:18]}  Nxb3 {[%clk 0:02:20]} 18. Qxb3 {[%clk 0:02:17]}  Qxe7 {[%clk 0:02:10]} 19. Nxd5 {[%clk 0:02:07]}  Qf7 {[%clk 0:02:03]} 20. Nxf6+ {[%clk 0:02:07]}  Kg7 {[%clk 0:02:01]} 21. Qxf7+ {[%clk 0:02:06]}  Kxf7 {[%clk 0:02:02]} 22. Nd5 {[%clk 0:02:05]}  Bb7 {[%clk 0:02:01]} 23. Ne5+ {[%clk 0:01:59]}  Kg7 {[%clk 0:01:59]} 24. Nxc7 {[%clk 0:01:59]}  Rc8 {[%clk 0:01:53]} 25. Rc1 {[%clk 0:01:59]}  Kf6 {[%clk 0:01:49]} 26. Nd5+ {[%clk 0:01:57]}  Ke6 {[%clk 0:01:48]} 27. Rxc8 {[%clk 0:01:57]}  Bxc8 {[%clk 0:01:49]} 28. Ne3 {[%clk 0:01:57]}  Bb7 {[%clk 0:01:45]} 29. Kf1 {[%clk 0:01:57]} 1-0


[Site "https://www.chess.com"]

[Event "Titled Tuesday Blitz August 08 Early 2023"]
[White "Vlassov, Nikolai"]
[Black "Demchenko, Anton"]
[WhiteFideId "4103360"]
[BlackFideId "4160258"]
[WhiteElo "2590"]
[BlackElo "2900"]
[Result "0-1"]
[Round "4"]
[TimeControl "180+1"]
[Date "2023.08.08"]
[WhiteClock "0:00:00"]
[BlackClock "0:00:14"]
[Board "49"]

1. e4 {[%clk 0:03:00]}  e5 {[%clk 0:03:00]} 2. Bc4 {[%clk 0:03:00]}  Nf6 {[%clk 0:02:58]} 3. d3 {[%clk 0:03:00]}  Bc5 {[%clk 0:02:56]} 4. Nf3 {[%clk 0:03:00]}  d6 {[%clk 0:02:55]} 5. Bg5 {[%clk 0:02:59]}  h6 {[%clk 0:02:54]} 6. Bh4 {[%clk 0:02:59]}  Nbd7 {[%clk 0:02:50]} 7. Nc3 {[%clk 0:02:58]}  c6 {[%clk 0:02:49]} 8. d4 {[%clk 0:02:52]}  Bb6 {[%clk 0:02:47]} 9. dxe5 {[%clk 0:02:42]}  dxe5 {[%clk 0:02:48]} 10. Qe2 {[%clk 0:02:42]}  Ba5 {[%clk 0:02:41]} 11. O-O {[%clk 0:02:39]}  Qe7 {[%clk 0:02:41]} 12. Rfd1 {[%clk 0:02:34]}  Nf8 {[%clk 0:02:37]} 13. Bg3 {[%clk 0:02:29]}  Ng6 {[%clk 0:02:36]} 14. h3 {[%clk 0:02:29]}  O-O {[%clk 0:02:34]} 15. Rd3 {[%clk 0:02:26]}  Nh5 {[%clk 0:02:23]} 16. Rd2 {[%clk 0:02:06]}  Nhf4 {[%clk 0:02:15]} 17. Qf1 {[%clk 0:01:58]}  Kh8 {[%clk 0:02:10]} 18. Rad1 {[%clk 0:01:55]}  f5 {[%clk 0:02:10]} 19. exf5 {[%clk 0:01:52]}  Bxf5 {[%clk 0:02:11]} 20. a3 {[%clk 0:01:44]}  Nh5 {[%clk 0:01:58]} 21. Bh2 {[%clk 0:01:38]}  Rae8 {[%clk 0:01:32]} 22. Re2 {[%clk 0:01:33]}  Bc7 {[%clk 0:01:22]} 23. Rde1 {[%clk 0:01:16]}  Ngf4 {[%clk 0:01:11]} 24. Re3 {[%clk 0:01:03]}  e4 {[%clk 0:00:34]} 25. Nd4 {[%clk 0:00:52]}  Bh7 {[%clk 0:00:30]} 26. g3 {[%clk 0:00:35]}  Bb6 {[%clk 0:00:23]} 27. Rd1 {[%clk 0:00:27]}  Qf6 {[%clk 0:00:20]} 28. gxf4 {[%clk 0:00:12]}  Bxd4 {[%clk 0:00:20]} 29. Re2 {[%clk 0:00:05]}  Bxc3 {[%clk 0:00:19]} 30. bxc3 {[%clk 0:00:05]}  Nxf4 {[%clk 0:00:20]} 31. Bxf4 {[%clk 0:00:05]}  Qxf4 {[%clk 0:00:21]} 32. Qg2 {[%clk 0:00:04]}  Re5 {[%clk 0:00:17]} 33. Kh1 {[%clk 0:00:01]}  Rg5 {[%clk 0:00:17]} 34. Qh2 {[%clk 0:00:00]}  Qf3+ {[%clk 0:00:14]} 0-1


[Site "https://www.chess.com"]

[Event "Titled Tuesday Blitz August 08 Early 2023"]
[White "only_strong_moves"]
[Black "Gholami Orimi, Mahdi"]
[BlackFideId "12558486"]
[WhiteElo "2590"]
[BlackElo "2895"]
[Result "0-1"]
[Round "4"]
[TimeControl "180+1"]
[Date "2023.08.08"]
[WhiteClock "0:00:00"]
[BlackClock "0:00:22"]
[Board "50"]

1. e4 {[%clk 0:03:00]}  c5 {[%clk 0:02:59]} 2. Nf3 {[%clk 0:03:00]}  d6 {[%clk 0:02:59]} 3. d4 {[%clk 0:03:00]}  cxd4 {[%clk 0:02:59]} 4. Nxd4 {[%clk 0:03:01]}  Nf6 {[%clk 0:03:00]} 5. Nc3 {[%clk 0:03:01]}  Nc6 {[%clk 0:03:00]} 6. Bg5 {[%clk 0:02:57]}  e6 {[%clk 0:02:59]} 7. Be2 {[%clk 0:02:41]}  Be7 {[%clk 0:02:56]} 8. O-O {[%clk 0:02:38]}  O-O {[%clk 0:02:55]} 9. Nxc6 {[%clk 0:02:02]}  bxc6 {[%clk 0:02:54]} 10. Kh1 {[%clk 0:01:59]}  Rb8 {[%clk 0:02:52]} 11. b3 {[%clk 0:01:58]}  d5 {[%clk 0:02:52]} 12. Bf4 {[%clk 0:01:52]}  Rb4 {[%clk 0:02:48]} 13. a3 {[%clk 0:01:36]}  Rb6 {[%clk 0:01:44]} 14. Na4 {[%clk 0:01:34]}  Nxe4 {[%clk 0:01:42]} 15. Nxb6 {[%clk 0:01:32]}  Qxb6 {[%clk 0:01:43]} 16. Be3 {[%clk 0:01:20]}  c5 {[%clk 0:01:43]} 17. Bd3 {[%clk 0:01:15]}  Nc3 {[%clk 0:01:39]} 18. Qh5 {[%clk 0:01:09]}  f5 {[%clk 0:01:38]} 19. Rae1 {[%clk 0:01:03]}  Bf6 {[%clk 0:01:36]} 20. Bg5 {[%clk 0:01:01]}  Bd7 {[%clk 0:01:30]} 21. f4 {[%clk 0:00:53]}  g6 {[%clk 0:01:16]} 22. Qh4 {[%clk 0:00:51]}  Bh8 {[%clk 0:01:13]} 23. Be7 {[%clk 0:00:46]}  Rf7 {[%clk 0:01:12]} 24. Bd8 {[%clk 0:00:36]}  Qc6 {[%clk 0:01:05]} 25. Ba5 {[%clk 0:00:23]}  Bf6 {[%clk 0:00:57]} 26. Qg3 {[%clk 0:00:20]}  Ne4 {[%clk 0:00:56]} 27. Bxe4 {[%clk 0:00:17]}  fxe4 {[%clk 0:00:57]} 28. c4 {[%clk 0:00:13]}  d4 {[%clk 0:00:58]} 29. b4 {[%clk 0:00:10]}  e3 {[%clk 0:00:57]} 30. bxc5 {[%clk 0:00:07]}  Qxc5 {[%clk 0:00:58]} 31. Bb4 {[%clk 0:00:07]}  Qxc4 {[%clk 0:00:57]} 32. Rc1 {[%clk 0:00:07]}  Qd5 {[%clk 0:00:56]} 33. f5 {[%clk 0:00:07]}  exf5 {[%clk 0:00:54]} 34. Qb8+ {[%clk 0:00:08]}  Kg7 {[%clk 0:00:52]} 35. Rc7 {[%clk 0:00:05]}  e2 {[%clk 0:00:52]} 36. Re1 {[%clk 0:00:06]}  d3 {[%clk 0:00:52]} 37. Bd2 {[%clk 0:00:05]}  g5 {[%clk 0:00:47]} 38. Qxa7 {[%clk 0:00:05]}  f4 {[%clk 0:00:47]} 39. Qf2 {[%clk 0:00:05]}  Bd4 {[%clk 0:00:32]} 40. Qf3 {[%clk 0:00:05]}  Qxf3 {[%clk 0:00:32]} 41. gxf3 {[%clk 0:00:06]}  Be3 {[%clk 0:00:32]} 42. Bc3+ {[%clk 0:00:05]}  Kg6 {[%clk 0:00:32]} 43. Rc4 {[%clk 0:00:04]}  g4 {[%clk 0:00:30]} 44. Kg2 {[%clk 0:00:03]}  h5 {[%clk 0:00:18]} 45. a4 {[%clk 0:00:02]}  gxf3+ {[%clk 0:00:18]} 46. Kxf3 {[%clk 0:00:02]}  Bg4+ {[%clk 0:00:19]} 47. Ke4 {[%clk 0:00:02]}  Bf5+ {[%clk 0:00:19]} 48. Kf3 {[%clk 0:00:02]}  Re7 {[%clk 0:00:19]} 49. a5 {[%clk 0:00:01]}  Bg4+ {[%clk 0:00:19]} 50. Kg2 {[%clk 0:00:01]}  f3+ {[%clk 0:00:20]} 51. Kg3 {[%clk 0:00:02]}  d2 {[%clk 0:00:21]} 52. Bxd2 {[%clk 0:00:02]}  Bxd2 {[%clk 0:00:22]} 53. Rb1 {[%clk 0:00:00]}  e1=Q+ {[%clk 0:00:22]} 0-1


[Site "https://www.chess.com"]

[Event "Titled Tuesday Blitz August 08 Early 2023"]
[White "Matyukov, Petr"]
[Black "Khubukshanov, Erdem"]
[WhiteFideId "4103688"]
[BlackFideId "54114527"]
[WhiteElo "2588"]
[BlackElo "2846"]
[Result "0-1"]
[Round "4"]
[TimeControl "180+1"]
[Date "2023.08.08"]
[WhiteClock "0:00:11"]
[BlackClock "0:01:23"]
[Board "51"]

1. d4 {[%clk 0:03:00]}  d5 {[%clk 0:02:59]} 2. c4 {[%clk 0:03:01]}  e6 {[%clk 0:02:59]} 3. Nc3 {[%clk 0:03:01]}  Bb4 {[%clk 0:02:59]} 4. cxd5 {[%clk 0:02:49]}  exd5 {[%clk 0:02:59]} 5. Nf3 {[%clk 0:02:48]}  c6 {[%clk 0:02:59]} 6. Qc2 {[%clk 0:02:47]}  g6 {[%clk 0:02:54]} 7. Bg5 {[%clk 0:02:46]}  Be7 {[%clk 0:02:53]} 8. h4 {[%clk 0:02:41]}  Bf5 {[%clk 0:02:51]} 9. Qb3 {[%clk 0:02:40]}  Qb6 {[%clk 0:02:51]} 10. e3 {[%clk 0:02:19]}  Nd7 {[%clk 0:02:46]} 11. Bxe7 {[%clk 0:02:07]}  Nxe7 {[%clk 0:02:46]} 12. Rc1 {[%clk 0:02:02]}  h5 {[%clk 0:02:40]} 13. Qa3 {[%clk 0:01:57]}  a5 {[%clk 0:02:29]} 14. Bb5 {[%clk 0:01:41]}  Nc8 {[%clk 0:02:16]} 15. O-O {[%clk 0:01:29]}  Kd8 {[%clk 0:01:45]} 16. Ng5 {[%clk 0:01:00]}  Rf8 {[%clk 0:01:44]} 17. Ba4 {[%clk 0:00:51]}  Qb4 {[%clk 0:01:44]} 18. f3 {[%clk 0:00:33]}  f6 {[%clk 0:01:40]} 19. Nh3 {[%clk 0:00:28]}  Bxh3 {[%clk 0:01:33]} 20. gxh3 {[%clk 0:00:29]}  Ndb6 {[%clk 0:01:28]} 21. Bc2 {[%clk 0:00:25]}  Nc4 {[%clk 0:01:26]} 22. Qxb4 {[%clk 0:00:20]}  axb4 {[%clk 0:01:27]} 23. Na4 {[%clk 0:00:20]}  Nxe3 {[%clk 0:01:27]} 24. Rfe1 {[%clk 0:00:17]}  Nxc2 {[%clk 0:01:27]} 25. Nc5 {[%clk 0:00:13]}  Nxe1 {[%clk 0:01:25]} 26. Ne6+ {[%clk 0:00:13]}  Ke7 {[%clk 0:01:26]} 27. Nxf8 {[%clk 0:00:11]}  Nxf3+ {[%clk 0:01:23]} 0-1


[Site "https://www.chess.com"]

[Event "Titled Tuesday Blitz August 08 Early 2023"]
[White "Toropov, Pavel"]
[Black "Timofeev, Artyom"]
[WhiteFideId "24129178"]
[BlackFideId "4140419"]
[WhiteElo "2581"]
[BlackElo "2832"]
[Result "0-1"]
[Round "4"]
[TimeControl "180+1"]
[Date "2023.08.08"]
[WhiteClock "0:00:02"]
[BlackClock "0:00:40"]
[Board "52"]

1. e4 {[%clk 0:03:00]}  e6 {[%clk 0:02:59]} 2. d4 {[%clk 0:03:01]}  d5 {[%clk 0:02:59]} 3. exd5 {[%clk 0:03:01]}  exd5 {[%clk 0:02:59]} 4. Bd3 {[%clk 0:03:00]}  c5 {[%clk 0:02:56]} 5. dxc5 {[%clk 0:03:01]}  Bxc5 {[%clk 0:02:55]} 6. Nf3 {[%clk 0:03:01]}  Ne7 {[%clk 0:02:55]} 7. O-O {[%clk 0:03:01]}  O-O {[%clk 0:02:55]} 8. Nbd2 {[%clk 0:03:01]}  Nbc6 {[%clk 0:02:53]} 9. h3 {[%clk 0:03:01]}  h6 {[%clk 0:02:52]} 10. Nb3 {[%clk 0:03:01]}  Bb6 {[%clk 0:02:52]} 11. c3 {[%clk 0:02:58]}  Bf5 {[%clk 0:02:47]} 12. Re1 {[%clk 0:02:46]}  Qd6 {[%clk 0:02:36]} 13. Be3 {[%clk 0:02:39]}  Bxe3 {[%clk 0:02:35]} 14. Rxe3 {[%clk 0:02:38]}  Bxd3 {[%clk 0:02:23]} 15. Qxd3 {[%clk 0:02:37]}  Ng6 {[%clk 0:02:23]} 16. Rd1 {[%clk 0:02:29]}  Nf4 {[%clk 0:02:22]} 17. Qf5 {[%clk 0:02:17]}  g6 {[%clk 0:02:11]} 18. Qg4 {[%clk 0:01:45]}  Rfe8 {[%clk 0:02:07]} 19. Rde1 {[%clk 0:00:48]}  Rxe3 {[%clk 0:02:04]} 20. Rxe3 {[%clk 0:00:41]}  Rd8 {[%clk 0:01:56]} 21. Nbd4 {[%clk 0:00:17]}  Qf6 {[%clk 0:01:51]} 22. h4 {[%clk 0:00:08]}  h5 {[%clk 0:01:32]} 23. Qg3 {[%clk 0:00:06]}  a6 {[%clk 0:01:11]} 24. Nxc6 {[%clk 0:00:05]}  bxc6 {[%clk 0:01:11]} 25. Nd4 {[%clk 0:00:06]}  c5 {[%clk 0:01:10]} 26. Rf3 {[%clk 0:00:06]}  cxd4 {[%clk 0:01:07]} 27. Rxf4 {[%clk 0:00:07]}  Qb6 {[%clk 0:01:07]} 28. Rxd4 {[%clk 0:00:06]}  Qxb2 {[%clk 0:01:07]} 29. Qd3 {[%clk 0:00:06]}  Qxa2 {[%clk 0:01:06]} 30. c4 {[%clk 0:00:06]}  a5 {[%clk 0:00:59]} 31. cxd5 {[%clk 0:00:07]}  a4 {[%clk 0:00:54]} 32. d6 {[%clk 0:00:06]}  a3 {[%clk 0:00:55]} 33. Ra4 {[%clk 0:00:03]}  Qa1+ {[%clk 0:00:49]} 34. Kh2 {[%clk 0:00:03]}  a2 {[%clk 0:00:45]} 35. Qd2 {[%clk 0:00:02]}  Qe5+ {[%clk 0:00:42]} 36. f4 {[%clk 0:00:02]}  a1=Q {[%clk 0:00:40]} 37. Rxa1 {[%clk 0:00:02]} 0-1


[Site "https://www.chess.com"]

[Event "Titled Tuesday Blitz August 08 Early 2023"]
[White "Mitrabha, Guha"]
[Black "Manukyan, Sargis A."]
[WhiteFideId "5057000"]
[BlackFideId "13303970"]
[WhiteElo "2809"]
[BlackElo "2571"]
[Result "1-0"]
[Round "4"]
[TimeControl "180+1"]
[Date "2023.08.08"]
[WhiteClock "0:01:47"]
[BlackClock "0:00:19"]
[Board "57"]

1. Nf3 {[%clk 0:02:59]}  d5 {[%clk 0:03:00]} 2. d4 {[%clk 0:02:59]}  Nf6 {[%clk 0:03:00]} 3. Bf4 {[%clk 0:02:59]}  Bg4 {[%clk 0:02:56]} 4. Ne5 {[%clk 0:02:59]}  Bd7 {[%clk 0:02:55]} 5. c4 {[%clk 0:02:59]}  e6 {[%clk 0:02:54]} 6. Qb3 {[%clk 0:03:00]}  Qc8 {[%clk 0:02:50]} 7. Nc3 {[%clk 0:02:58]}  Nc6 {[%clk 0:02:50]} 8. e3 {[%clk 0:02:57]}  Nxe5 {[%clk 0:02:48]} 9. dxe5 {[%clk 0:02:57]}  dxc4 {[%clk 0:02:41]} 10. Bxc4 {[%clk 0:02:56]}  Nh5 {[%clk 0:02:42]} 11. Bg5 {[%clk 0:02:55]}  h6 {[%clk 0:02:41]} 12. Bh4 {[%clk 0:02:55]}  g5 {[%clk 0:02:42]} 13. Bg3 {[%clk 0:02:55]}  Nxg3 {[%clk 0:02:42]} 14. hxg3 {[%clk 0:02:56]}  Bg7 {[%clk 0:02:42]} 15. f4 {[%clk 0:02:56]}  a6 {[%clk 0:02:41]} 16. Bd3 {[%clk 0:02:55]}  b5 {[%clk 0:02:40]} 17. O-O-O {[%clk 0:02:53]}  c5 {[%clk 0:02:39]} 18. Qc2 {[%clk 0:02:46]}  c4 {[%clk 0:02:30]} 19. Be2 {[%clk 0:02:39]}  Bc6 {[%clk 0:02:26]} 20. Bf3 {[%clk 0:02:39]}  Bxf3 {[%clk 0:02:09]} 21. gxf3 {[%clk 0:02:40]}  Qc5 {[%clk 0:02:09]} 22. Rd4 {[%clk 0:02:38]}  Rd8 {[%clk 0:02:01]} 23. Ne4 {[%clk 0:02:37]}  Qb6 {[%clk 0:01:52]} 24. Nd6+ {[%clk 0:02:37]}  Ke7 {[%clk 0:01:46]} 25. Qd2 {[%clk 0:02:34]}  h5 {[%clk 0:01:38]} 26. Qb4 {[%clk 0:02:20]}  Rxd6 {[%clk 0:01:16]} 27. Rxd6 {[%clk 0:02:19]}  Qxe3+ {[%clk 0:01:16]} 28. Rd2+ {[%clk 0:02:19]}  Ke8 {[%clk 0:01:14]} 29. Qd6 {[%clk 0:02:18]}  f5 {[%clk 0:01:09]} 30. Qxe6+ {[%clk 0:02:18]}  Kf8 {[%clk 0:01:09]} 31. Qxf5+ {[%clk 0:02:17]}  Kg8 {[%clk 0:01:07]} 32. Qe4 {[%clk 0:02:10]}  Qb6 {[%clk 0:00:51]} 33. Rd7 {[%clk 0:02:05]}  Rh6 {[%clk 0:00:40]} 34. Rhd1 {[%clk 0:02:01]}  gxf4 {[%clk 0:00:36]} 35. Rd8+ {[%clk 0:01:59]}  Bf8 {[%clk 0:00:36]} 36. Qxf4 {[%clk 0:01:56]}  Qc5 {[%clk 0:00:19]} 37. Qxh6 {[%clk 0:01:47]} 1-0


[Site "https://www.chess.com"]

[Event "Titled Tuesday Blitz August 08 Early 2023"]
[White "Riehle, Marco"]
[Black "Borgaonkar Akshay"]
[WhiteFideId "12904392"]
[BlackFideId "25639110"]
[WhiteElo "2805"]
[BlackElo "2570"]
[Result "0-1"]
[Round "4"]
[TimeControl "180+1"]
[Date "2023.08.08"]
[WhiteClock "0:00:30"]
[BlackClock "0:00:05"]
[Board "59"]

1. e4 {[%clk 0:03:00]}  c5 {[%clk 0:02:58]} 2. a3 {[%clk 0:03:00]}  e6 {[%clk 0:02:51]} 3. b4 {[%clk 0:02:57]}  cxb4 {[%clk 0:02:49]} 4. axb4 {[%clk 0:02:57]}  Bxb4 {[%clk 0:02:49]} 5. Bb2 {[%clk 0:02:58]}  Nf6 {[%clk 0:02:48]} 6. e5 {[%clk 0:02:58]}  Nd5 {[%clk 0:02:46]} 7. c4 {[%clk 0:02:58]}  Ne7 {[%clk 0:02:45]} 8. Qg4 {[%clk 0:02:58]}  Nbc6 {[%clk 0:02:37]} 9. Qxg7 {[%clk 0:02:48]}  Rg8 {[%clk 0:02:36]} 10. Qxh7 {[%clk 0:02:48]}  Qb6 {[%clk 0:02:36]} 11. Qd3 {[%clk 0:02:24]}  Bc5 {[%clk 0:02:32]} 12. Bc3 {[%clk 0:01:39]}  Bxf2+ {[%clk 0:02:30]} 13. Kd1 {[%clk 0:01:39]}  Bxg1 {[%clk 0:02:31]} 14. Na3 {[%clk 0:01:40]}  Bd4 {[%clk 0:02:22]} 15. Nb5 {[%clk 0:01:36]}  Bxc3 {[%clk 0:02:22]} 16. dxc3 {[%clk 0:01:33]}  Nxe5 {[%clk 0:02:20]} 17. Qd4 {[%clk 0:01:33]}  Qxd4+ {[%clk 0:01:39]} 18. cxd4 {[%clk 0:01:34]}  Ng4 {[%clk 0:01:39]} 19. Kd2 {[%clk 0:01:34]}  Kd8 {[%clk 0:01:35]} 20. Be2 {[%clk 0:01:29]}  Nf2 {[%clk 0:01:34]} 21. Rhg1 {[%clk 0:01:27]}  Ne4+ {[%clk 0:01:35]} 22. Kd3 {[%clk 0:01:25]}  f5 {[%clk 0:01:35]} 23. Nxa7 {[%clk 0:01:21]}  Ke8 {[%clk 0:01:29]} 24. Bf3 {[%clk 0:01:16]}  d5 {[%clk 0:01:29]} 25. c5 {[%clk 0:01:14]}  Bd7 {[%clk 0:01:25]} 26. Rgb1 {[%clk 0:01:13]}  Rb8 {[%clk 0:01:04]} 27. Ra2 {[%clk 0:01:10]}  Kf7 {[%clk 0:01:01]} 28. Rab2 {[%clk 0:01:09]}  Bc6 {[%clk 0:00:37]} 29. h4 {[%clk 0:01:03]}  Kf6 {[%clk 0:00:34]} 30. h5 {[%clk 0:00:58]}  Ra8 {[%clk 0:00:29]} 31. Ra1 {[%clk 0:00:58]}  Nc8 {[%clk 0:00:24]} 32. Rba2 {[%clk 0:00:55]}  Nxa7 {[%clk 0:00:24]} 33. Rxa7 {[%clk 0:00:56]}  Rxa7 {[%clk 0:00:25]} 34. Rxa7 {[%clk 0:00:57]}  Rh8 {[%clk 0:00:19]} 35. Ra1 {[%clk 0:00:54]}  Ng3 {[%clk 0:00:19]} 36. Kc3 {[%clk 0:00:49]}  Nxh5 {[%clk 0:00:16]} 37. Rh1 {[%clk 0:00:50]}  Kg5 {[%clk 0:00:16]} 38. Kb4 {[%clk 0:00:49]}  Rh7 {[%clk 0:00:16]} 39. Ka5 {[%clk 0:00:48]}  Nf6 {[%clk 0:00:17]} 40. Re1 {[%clk 0:00:48]}  Ne4 {[%clk 0:00:15]} 41. Kb6 {[%clk 0:00:49]}  Kf4 {[%clk 0:00:15]} 42. Ra1 {[%clk 0:00:48]}  Nd2 {[%clk 0:00:13]} 43. Be2 {[%clk 0:00:48]}  Nc4+ {[%clk 0:00:12]} 44. Ka7 {[%clk 0:00:44]}  b6+ {[%clk 0:00:13]} 45. Kb8 {[%clk 0:00:44]}  bxc5 {[%clk 0:00:13]} 46. dxc5 {[%clk 0:00:45]}  Rb7+ {[%clk 0:00:12]} 47. Kc8 {[%clk 0:00:45]}  Rb2 {[%clk 0:00:13]} 48. Bf1 {[%clk 0:00:43]}  Rb5 {[%clk 0:00:08]} 49. Bxc4 {[%clk 0:00:36]}  dxc4 {[%clk 0:00:08]} 50. Kc7 {[%clk 0:00:37]}  Bxg2 {[%clk 0:00:06]} 51. Kd6 {[%clk 0:00:37]}  Bd5 {[%clk 0:00:06]} 52. Ra6 {[%clk 0:00:36]}  c3 {[%clk 0:00:05]} 53. c6 {[%clk 0:00:36]}  c2 {[%clk 0:00:06]} 54. Ra1 {[%clk 0:00:36]}  Bxc6 {[%clk 0:00:05]} 55. Kxc6 {[%clk 0:00:36]}  Rb1 {[%clk 0:00:05]} 56. Ra4+ {[%clk 0:00:37]}  Kg5 {[%clk 0:00:05]} 57. Ra7 {[%clk 0:00:34]}  c1=Q+ {[%clk 0:00:05]} 58. Kd7 {[%clk 0:00:35]}  Qd2+ {[%clk 0:00:05]} 59. Ke7 {[%clk 0:00:34]}  Qb4+ {[%clk 0:00:05]} 60. Kf7 {[%clk 0:00:30]}  Qb7+ {[%clk 0:00:05]} 0-1


[Site "https://www.chess.com"]